{"text_format":"1","workbook":"xlsx","n_sheets":12,"sheets":["記入例","支部No","初段","二段","三段","四段","五段","六段","七段","八段","錬士","教士"],"not_rendered":{"charts":0,"images":0,"macros":1,"external_links":0,"defined_names":21,"comments":1,"pivot_tables":0},"unopened":[],"bounds":{"document_bytes":16777216,"sheet_cells":100000,"rows_first":2000,"rows_last":500,"rows_between":2000,"halvings":0,"cell_chars":16384,"cell_head_chars":4096},"cells_cut":0,"cells_raw":0,"read":"whole","date_system":"1900"}

{"sheet":"記入例","index":0,"n_rows":28,"n_cols":15,"rows_kept":28,"cut":false,"hidden":false,"merged":[[1,5,1,6],[1,7,1,10],[2,6,2,7],[2,12,2,14],[3,3,3,5],[3,6,3,9],[3,12,3,14]]}
[]
[null,null,null,null,null,"○段",null,"受審申込み連名簿"]
[null,null,null,"申込人数",{"$f":"IF(D7=\"\",\"\",COUNTA(D7:D28))","v":2},"名","支部No．",null,{"$f":"IF(J3=\"\",\"\",VLOOKUP(J3,支部No!D:E,2,FALSE))","v":1},"鶴見区","支部","審査日","年令基準"]
[null,null,null,"申込記載者氏名",null,null,null,null,null,null,"印","2015-11-01",{"$f":"IF(L4=\"\",\"\",L4)","v":"2015-11-01"}]
[]
[null,"No.","全剣連番号","姓","名","性別","学年","生年月日","年令","前段取得\n年月日","経過年数","取得場所","写","形","学科"]
[null,1,12345678,"神奈川","太郎","男","高１","1999-05-05",{"$f":"IF(H7=\"\",\"\",DATEDIF(H7,$M$4,\"Y\"))","v":16},"2014-11-04",{"$f":"IF(J7=\"\",\"\",DATEDIF(DATE(YEAR(J7),MONTH(J7),1),DATE(YEAR($L$4),MONTH($L$4),DAY($L$4)),\"Y\"))","v":1}]
[null,2,12345699,"横浜","花子","女","高２","1998-08-07",{"$f":"IF(H8=\"\",\"\",DATEDIF(H8,$M$4,\"Y\"))","v":17},"2014-11-04",{"$f":"IF(J8=\"\",\"\",DATEDIF(DATE(YEAR(J8),MONTH(J8),1),DATE(YEAR($L$4),MONTH($L$4),DAY($L$4)),\"Y\"))","v":1}]
[null,3,null,null,null,null,null,null,{"$f":"IF(H9=\"\",\"\",DATEDIF(H9,$M$4,\"Y\"))","v":""},null,{"$f":"IF(J9=\"\",\"\",DATEDIF(DATE(YEAR(J9),MONTH(J9),1),DATE(YEAR($L$4),MONTH($L$4),DAY($L$4)),\"Y\"))","v":""}]
[null,4,null,null,null,null,null,null,"",null,""]
[null,5,null,null,null,null,null,null,"",null,""]
[null,6,null,null,null,null,null,null,"",null,""]
[null,7,null,null,null,null,null,null,"",null,""]
[null,8,null,null,null,null,null,null,"",null,""]
[null,9,null,null,null,null,null,null,"",null,""]
[null,10,null,null,null,null,null,null,"",null,""]
[null,11,null,null,null,null,null,null,"",null,""]
[null,12,null,null,null,null,null,null,"",null,""]
[null,13,null,null,null,null,null,null,"",null,""]
[null,14,null,null,null,null,null,null,"",null,""]
[null,15,null,null,null,null,null,null,"",null,""]
[null,16,null,null,null,null,null,null,"",null,""]
[null,17,null,null,null,null,null,null,"",null,""]
[null,18,null,null,null,null,null,null,"",null,""]
[null,19,null,null,null,null,null,null,"",null,""]
[null,20,null,null,null,null,null,null,"",null,""]
[null,null,null,null,null,null,null,null,"",null,""]
[null,null,null,null,null,null,null,null,"",null,""]

{"sheet":"支部No","index":1,"n_rows":37,"n_cols":5,"rows_kept":37,"cut":false,"hidden":true,"merged":[]}
[null,null,null,"支部名","No."]
[null,null,null,"鶴見区",1]
[null,null,null,"神奈川区",2]
[null,null,null,"西区",3]
[null,null,null,"中区",4]
[null,null,null,"南区",5]
[null,null,null,"保土ケ谷区",6]
[null,null,null,"磯子区",7]
[null,null,null,"金沢区",8]
[null,null,null,"港北区",9]
[null,null,null,"戸塚区",10]
[null,null,null,"泉区",11]
[null,null,null,"栄区",12]
[null,null,null,"港南区",13]
[null,null,null,"旭区",14]
[null,null,null,"瀬谷区",15]
[null,null,null,"緑区",16]
[null,null,null,"青葉区",17]
[null,null,null,"都筑区",18]
[null,null,null,"川崎市",19]
[null,null,null,"横須賀",20]
[null,null,null,"平塚市",21]
[null,null,null,"鎌倉",22]
[null,null,null,"藤沢市",23]
[null,null,null,"茅ヶ崎市",24]
[null,null,null,"中郡",25]
[null,null,null,"小田原",26]
[null,null,null,"相模原市",28]
[null,null,null,"秦野市",29]
[null,null,null,"厚木",30]
[null,null,null,"大和市",31]
[null,null,null,"海老名市",32]
[null,null,null,"津久井",33]
[null,null,null,"座間市",34]
[null,null,null,"伊勢原市",35]
[null,null,null,"綾瀬市",36]
[null,null,null,"警察",37]

{"sheet":"初段","index":2,"n_rows":26,"n_cols":15,"rows_kept":26,"cut":false,"hidden":false,"merged":[[1,7,1,10],[1,5,1,6],[3,3,3,5],[3,6,3,9],[2,12,2,14],[3,12,3,14],[2,6,2,7]]}
[]
[null,null,null,null,null,"初段",null,"受審申込み連名簿"]
[null,null,null,"申込人数",{"$f":"IF(D7=\"\",\"\",COUNTA(D7:D26))","v":""},"名","支部No.",null,{"$f":"IF(J3=\"\",\"\",VLOOKUP(J3,支部No!D:E,2,FALSE))","v":""},null,"支部","審査日","年令基準"]
[null,null,null,"申込記載者氏名",null,null,null,null,null,null,"印",null,{"$f":"IF(L4=\"\",\"\",L4)","v":""}]
[]
[null,"No.","全剣連番号","姓","名","性別","学年","生年月日","年令","前段取得\n年月日","経過年数","取得場所","写","形","学科"]
[null,1,null,null,null,null,null,null,{"$f":"IF(H7=\"\",\"\",DATEDIF(H7,$M$4,\"Y\"))","v":""},null,{"$f":"IF(J7=\"\",\"\",DATEDIF(DATE(YEAR(J7),MONTH(J7),1),DATE(YEAR($L$4),MONTH($L$4),DAY($L$4)),\"Y\"))","v":""}]
[null,2,null,null,null,null,null,null,"",null,""]
[null,3,null,null,null,null,null,null,"",null,""]
[null,4,null,null,null,null,null,null,"",null,""]
[null,5,null,null,null,null,null,null,"",null,""]
[null,6,null,null,null,null,null,null,"",null,""]
[null,7,null,null,null,null,null,null,"",null,""]
[null,8,null,null,null,null,null,null,"",null,""]
[null,9,null,null,null,null,null,null,"",null,""]
[null,10,null,null,null,null,null,null,"",null,""]
[null,11,null,null,null,null,null,null,"",null,""]
[null,12,null,null,null,null,null,null,"",null,""]
[null,13,null,null,null,null,null,null,"",null,""]
[null,14,null,null,null,null,null,null,"",null,""]
[null,15,null,null,null,null,null,null,"",null,""]
[null,16,null,null,null,null,null,null,"",null,""]
[null,17,null,null,null,null,null,null,"",null,""]
[null,18,null,null,null,null,null,null,"",null,""]
[null,19,null,null,null,null,null,null,"",null,""]
[null,20,null,null,null,null,null,null,"",null,""]

{"sheet":"二段","index":3,"n_rows":26,"n_cols":15,"rows_kept":26,"cut":false,"hidden":false,"merged":[[1,7,1,10],[1,5,1,6],[2,6,2,7],[2,12,2,14],[3,3,3,5],[3,6,3,9],[3,12,3,14]]}
[]
[null,null,null,null,null,"二段",null,"受審申込み連名簿"]
[null,null,null,"申込人数",{"$f":"IF(D7=\"\",\"\",COUNTA(D7:D26))","v":""},"名","支部No.",null,{"$f":"IF(J3=\"\",\"\",VLOOKUP(J3,支部No!D:E,2,FALSE))","v":""},null,"支部","審査日","年令基準"]
[null,null,null,"申込記載者氏名",null,null,null,null,null,null,"印",null,{"$f":"IF(L4=\"\",\"\",L4)","v":""}]
[]
[null,"No.","全剣連番号","姓","名","性別","学年","生年月日","年令","前段取得\n年月日","経過年数","取得場所","写","形","学科"]
[null,1,null,null,null,null,null,null,{"$f":"IF(H7=\"\",\"\",DATEDIF(H7,$M$4,\"Y\"))","v":""},null,{"$f":"IF(J7=\"\",\"\",DATEDIF(DATE(YEAR(J7),MONTH(J7),1),DATE(YEAR($L$4),MONTH($L$4),DAY($L$4)),\"Y\"))","v":""}]
[null,2,null,null,null,null,null,null,"",null,""]
[null,3,null,null,null,null,null,null,"",null,""]
[null,4,null,null,null,null,null,null,"",null,""]
[null,5,null,null,null,null,null,null,"",null,""]
[null,6,null,null,null,null,null,null,"",null,""]
[null,7,null,null,null,null,null,null,"",null,""]
[null,8,null,null,null,null,null,null,"",null,""]
[null,9,null,null,null,null,null,null,"",null,""]
[null,10,null,null,null,null,null,null,"",null,""]
[null,11,null,null,null,null,null,null,"",null,""]
[null,12,null,null,null,null,null,null,"",null,""]
[null,13,null,null,null,null,null,null,"",null,""]
[null,14,null,null,null,null,null,null,"",null,""]
[null,15,null,null,null,null,null,null,"",null,""]
[null,16,null,null,null,null,null,null,"",null,""]
[null,17,null,null,null,null,null,null,"",null,""]
[null,18,null,null,null,null,null,null,"",null,""]
[null,19,null,null,null,null,null,null,"",null,""]
[null,20,null,null,null,null,null,null,"",null,""]

{"sheet":"三段","index":4,"n_rows":26,"n_cols":15,"rows_kept":26,"cut":false,"hidden":false,"merged":[[1,7,1,10],[1,5,1,6],[2,6,2,7],[2,12,2,14],[3,3,3,5],[3,6,3,9],[3,12,3,14]]}
[]
[null,null,null,null,null,"三段",null,"受審申込み連名簿"]
[null,null,null,"申込人数",{"$f":"IF(D7=\"\",\"\",COUNTA(D7:D26))","v":""},"名","支部No.",null,{"$f":"IF(J3=\"\",\"\",VLOOKUP(J3,支部No!D:E,2,FALSE))","v":""},null,"支部","審査日","年令基準"]
[null,null,null,"申込記載者氏名",null,null,null,null,null,null,"印",null,{"$f":"IF(L4=\"\",\"\",L4)","v":""}]
[]
[null,"No.","全剣連番号","姓","名","性別","学年","生年月日","年令","前段取得\n年月日","経過年数","取得場所","写","形","学科"]
[null,1,null,null,null,null,null,null,{"$f":"IF(H7=\"\",\"\",DATEDIF(H7,$M$4,\"Y\"))","v":""},null,{"$f":"IF(J7=\"\",\"\",DATEDIF(DATE(YEAR(J7),MONTH(J7),1),DATE(YEAR($L$4),MONTH($L$4),DAY($L$4)),\"Y\"))","v":""}]
[null,2,null,null,null,null,null,null,"",null,""]
[null,3,null,null,null,null,null,null,"",null,""]
[null,4,null,null,null,null,null,null,"",null,""]
[null,5,null,null,null,null,null,null,"",null,""]
[null,6,null,null,null,null,null,null,"",null,""]
[null,7,null,null,null,null,null,null,"",null,""]
[null,8,null,null,null,null,null,null,"",null,""]
[null,9,null,null,null,null,null,null,"",null,""]
[null,10,null,null,null,null,null,null,"",null,""]
[null,11,null,null,null,null,null,null,"",null,""]
[null,12,null,null,null,null,null,null,"",null,""]
[null,13,null,null,null,null,null,null,"",null,""]
[null,14,null,null,null,null,null,null,"",null,""]
[null,15,null,null,null,null,null,null,"",null,""]
[null,16,null,null,null,null,null,null,"",null,""]
[null,17,null,null,null,null,null,null,"",null,""]
[null,18,null,null,null,null,null,null,"",null,""]
[null,19,null,null,null,null,null,null,"",null,""]
[null,20,null,null,null,null,null,null,"",null,""]

{"sheet":"四段","index":5,"n_rows":26,"n_cols":15,"rows_kept":26,"cut":false,"hidden":false,"merged":[[1,7,1,10],[1,5,1,6],[2,6,2,7],[2,12,2,14],[3,3,3,5],[3,6,3,9],[3,12,3,14]]}
[]
[null,null,null,null,null,"四段",null,"受審申込み連名簿"]
[null,null,null,"申込人数",{"$f":"IF(D7=\"\",\"\",COUNTA(D7:D26))","v":""},"名","支部No.",null,{"$f":"IF(J3=\"\",\"\",VLOOKUP(J3,支部No!D:E,2,FALSE))","v":""},null,"支部","審査日","年令基準"]
[null,null,null,"申込記載者氏名",null,null,null,null,null,null,"印",null,{"$f":"IF(L4=\"\",\"\",L4)","v":""}]
[]
[null,"No.","全剣連番号","姓","名","性別","学年","生年月日","年令","前段取得\n年月日","経過年数","取得場所","写","形","学科"]
[null,1,null,null,null,null,null,null,{"$f":"IF(H7=\"\",\"\",DATEDIF(H7,$M$4,\"Y\"))","v":""},null,{"$f":"IF(J7=\"\",\"\",DATEDIF(DATE(YEAR(J7),MONTH(J7),1),DATE(YEAR($L$4),MONTH($L$4),DAY($L$4)),\"Y\"))","v":""}]
[null,2,null,null,null,null,null,null,"",null,""]
[null,3,null,null,null,null,null,null,"",null,""]
[null,4,null,null,null,null,null,null,"",null,""]
[null,5,null,null,null,null,null,null,"",null,""]
[null,6,null,null,null,null,null,null,"",null,""]
[null,7,null,null,null,null,null,null,"",null,""]
[null,8,null,null,null,null,null,null,"",null,""]
[null,9,null,null,null,null,null,null,"",null,""]
[null,10,null,null,null,null,null,null,"",null,""]
[null,11,null,null,null,null,null,null,"",null,""]
[null,12,null,null,null,null,null,null,"",null,""]
[null,13,null,null,null,null,null,null,"",null,""]
[null,14,null,null,null,null,null,null,"",null,""]
[null,15,null,null,null,null,null,null,"",null,""]
[null,16,null,null,null,null,null,null,"",null,""]
[null,17,null,null,null,null,null,null,"",null,""]
[null,18,null,null,null,null,null,null,"",null,""]
[null,19,null,null,null,null,null,null,"",null,""]
[null,20,null,null,null,null,null,null,"",null,""]

{"sheet":"五段","index":6,"n_rows":26,"n_cols":15,"rows_kept":26,"cut":false,"hidden":false,"merged":[[1,7,1,10],[1,5,1,6],[2,6,2,7],[2,12,2,14],[3,3,3,5],[3,6,3,9],[3,12,3,14]]}
[]
[null,null,null,null,null,"五段",null,"受審申込み連名簿"]
[null,null,null,"申込人数",{"$f":"IF(D7=\"\",\"\",COUNTA(D7:D26))","v":""},"名","支部No.",null,{"$f":"IF(J3=\"\",\"\",VLOOKUP(J3,支部No!D:E,2,FALSE))","v":""},null,"支部","審査日","年令基準"]
[null,null,null,"申込記載者氏名",null,null,null,null,null,null,"印",null,{"$f":"IF(L4=\"\",\"\",L4)","v":""}]
[]
[null,"No.","全剣連番号","姓","名","性別","学年","生年月日","年令","前段取得\n年月日","経過年数","取得場所","写","形","学科"]
[null,1,null,null,null,null,null,null,{"$f":"IF(H7=\"\",\"\",DATEDIF(H7,$M$4,\"Y\"))","v":""},null,{"$f":"IF(J7=\"\",\"\",DATEDIF(DATE(YEAR(J7),MONTH(J7),1),DATE(YEAR($L$4),MONTH($L$4),DAY($L$4)),\"Y\"))","v":""}]
[null,2,null,null,null,null,null,null,"",null,""]
[null,3,null,null,null,null,null,null,"",null,""]
[null,4,null,null,null,null,null,null,"",null,""]
[null,5,null,null,null,null,null,null,"",null,""]
[null,6,null,null,null,null,null,null,"",null,""]
[null,7,null,null,null,null,null,null,"",null,""]
[null,8,null,null,null,null,null,null,"",null,""]
[null,9,null,null,null,null,null,null,"",null,""]
[null,10,null,null,null,null,null,null,"",null,""]
[null,11,null,null,null,null,null,null,"",null,""]
[null,12,null,null,null,null,null,null,"",null,""]
[null,13,null,null,null,null,null,null,"",null,""]
[null,14,null,null,null,null,null,null,"",null,""]
[null,15,null,null,null,null,null,null,"",null,""]
[null,16,null,null,null,null,null,null,"",null,""]
[null,17,null,null,null,null,null,null,"",null,""]
[null,18,null,null,null,null,null,null,"",null,""]
[null,19,null,null,null,null,null,null,"",null,""]
[null,20,null,null,null,null,null,null,"",null,""]

{"sheet":"六段","index":7,"n_rows":26,"n_cols":15,"rows_kept":26,"cut":false,"hidden":false,"merged":[[1,7,1,10],[1,5,1,6],[2,6,2,7],[2,12,2,14],[3,3,3,5],[3,6,3,9],[3,12,3,14]]}
[]
[null,null,null,null,null,"六段",null,"受審申込み連名簿"]
[null,null,"受審地","申込人数",{"$f":"IF(D7=\"\",\"\",COUNTA(D7:D26))","v":""},"名","支部No.",null,{"$f":"IF(J3=\"\",\"\",VLOOKUP(J3,支部No!D:E,2,FALSE))","v":""},null,"支部","審査日","年令基準"]
[null,null,null,"申込記載者氏名",null,null,null,null,null,null,"印",null,{"$f":"IF(L4=\"\",\"\",L4)","v":""}]
[]
[null,"No.","全剣連番号","姓","名","性別","学年","生年月日","年令","前段取得\n年月日","経過年数","取得場所","写","形","学科"]
[null,1,null,null,null,null,null,null,{"$f":"IF(H7=\"\",\"\",DATEDIF(H7,$M$4,\"Y\"))","v":""},null,{"$f":"IF(J7=\"\",\"\",DATEDIF(DATE(YEAR(J7),MONTH(J7),1),DATE(YEAR($L$4),MONTH($L$4),DAY($L$4)),\"Y\"))","v":""}]
[null,2,null,null,null,null,null,null,"",null,""]
[null,3,null,null,null,null,null,null,"",null,""]
[null,4,null,null,null,null,null,null,"",null,""]
[null,5,null,null,null,null,null,null,"",null,""]
[null,6,null,null,null,null,null,null,"",null,""]
[null,7,null,null,null,null,null,null,"",null,""]
[null,8,null,null,null,null,null,null,"",null,""]
[null,9,null,null,null,null,null,null,"",null,""]
[null,10,null,null,null,null,null,null,"",null,""]
[null,11,null,null,null,null,null,null,"",null,""]
[null,12,null,null,null,null,null,null,"",null,""]
[null,13,null,null,null,null,null,null,"",null,""]
[null,14,null,null,null,null,null,null,"",null,""]
[null,15,null,null,null,null,null,null,"",null,""]
[null,16,null,null,null,null,null,null,"",null,""]
[null,17,null,null,null,null,null,null,"",null,""]
[null,18,null,null,null,null,null,null,"",null,""]
[null,19,null,null,null,null,null,null,"",null,""]
[null,20,null,null,null,null,null,null,"",null,""]

{"sheet":"七段","index":8,"n_rows":26,"n_cols":15,"rows_kept":26,"cut":false,"hidden":false,"merged":[[1,7,1,10],[1,5,1,6],[2,6,2,7],[2,12,2,14],[3,3,3,5],[3,6,3,9],[3,12,3,14]]}
[]
[null,null,null,null,null,"七段",null,"受審申込み連名簿"]
[null,null,"受審地","申込人数",{"$f":"IF(D7=\"\",\"\",COUNTA(D7:D26))","v":""},"名","支部No.",null,{"$f":"IF(J3=\"\",\"\",VLOOKUP(J3,支部No!D:E,2,FALSE))","v":""},null,"支部","審査日","年令基準"]
[null,null,null,"申込記載者氏名",null,null,null,null,null,null,"印",null,{"$f":"IF(L4=\"\",\"\",L4)","v":""}]
[]
[null,"No.","全剣連番号","姓","名","性別","学年","生年月日","年令","前段取得\n年月日","経過年数","取得場所","写","形","学科"]
[null,1,null,null,null,null,null,null,{"$f":"IF(H7=\"\",\"\",DATEDIF(H7,$M$4,\"Y\"))","v":""},null,{"$f":"IF(J7=\"\",\"\",DATEDIF(DATE(YEAR(J7),MONTH(J7),1),DATE(YEAR($L$4),MONTH($L$4),DAY($L$4)),\"Y\"))","v":""}]
[null,2,null,null,null,null,null,null,"",null,""]
[null,3,null,null,null,null,null,null,"",null,""]
[null,4,null,null,null,null,null,null,"",null,""]
[null,5,null,null,null,null,null,null,"",null,""]
[null,6,null,null,null,null,null,null,"",null,""]
[null,7,null,null,null,null,null,null,"",null,""]
[null,8,null,null,null,null,null,null,"",null,""]
[null,9,null,null,null,null,null,null,"",null,""]
[null,10,null,null,null,null,null,null,"",null,""]
[null,11,null,null,null,null,null,null,"",null,""]
[null,12,null,null,null,null,null,null,"",null,""]
[null,13,null,null,null,null,null,null,"",null,""]
[null,14,null,null,null,null,null,null,"",null,""]
[null,15,null,null,null,null,null,null,"",null,""]
[null,16,null,null,null,null,null,null,"",null,""]
[null,17,null,null,null,null,null,null,"",null,""]
[null,18,null,null,null,null,null,null,"",null,""]
[null,19,null,null,null,null,null,null,"",null,""]
[null,20,null,null,null,null,null,null,"",null,""]

{"sheet":"八段","index":9,"n_rows":26,"n_cols":15,"rows_kept":26,"cut":false,"hidden":false,"merged":[[1,7,1,10],[1,5,1,6],[2,6,2,7],[2,12,2,14],[3,3,3,5],[3,6,3,9],[3,12,3,14]]}
[]
[null,null,"↓いずれかを○",null,null,"八段",null,"受審申込み連名簿"]
[null,null,"１日目","申込人数",{"$f":"IF(D7=\"\",\"\",COUNTA(D7:D26))","v":""},"名","支部No.",null,{"$f":"IF(J3=\"\",\"\",VLOOKUP(J3,支部No!D:E,2,FALSE))","v":""},null,"支部","審査日","年令基準"]
[null,null,"２日目","申込記載者氏名",null,null,null,null,null,null,"印",null,{"$f":"IF(L4=\"\",\"\",L4)","v":""}]
[]
[null,"No.","全剣連番号","姓","名","性別","学年","生年月日","年令","前段取得\n年月日","経過年数","取得場所","写","形","学科"]
[null,1,null,null,null,null,null,null,{"$f":"IF(H7=\"\",\"\",DATEDIF(H7,$M$4,\"Y\"))","v":""},null,{"$f":"IF(J7=\"\",\"\",DATEDIF(DATE(YEAR(J7),MONTH(J7),1),DATE(YEAR($L$4),MONTH($L$4),DAY($L$4)),\"Y\"))","v":""}]
[null,2,null,null,null,null,null,null,"",null,""]
[null,3,null,null,null,null,null,null,"",null,""]
[null,4,null,null,null,null,null,null,"",null,""]
[null,5,null,null,null,null,null,null,"",null,""]
[null,6,null,null,null,null,null,null,"",null,""]
[null,7,null,null,null,null,null,null,"",null,""]
[null,8,null,null,null,null,null,null,"",null,""]
[null,9,null,null,null,null,null,null,"",null,""]
[null,10,null,null,null,null,null,null,"",null,""]
[null,11,null,null,null,null,null,null,"",null,""]
[null,12,null,null,null,null,null,null,"",null,""]
[null,13,null,null,null,null,null,null,"",null,""]
[null,14,null,null,null,null,null,null,"",null,""]
[null,15,null,null,null,null,null,null,"",null,""]
[null,16,null,null,null,null,null,null,"",null,""]
[null,17,null,null,null,null,null,null,"",null,""]
[null,18,null,null,null,null,null,null,"",null,""]
[null,19,null,null,null,null,null,null,"",null,""]
[null,20,null,null,null,null,null,null,"",null,""]

{"sheet":"錬士","index":10,"n_rows":26,"n_cols":16,"rows_kept":26,"cut":false,"hidden":false,"merged":[[1,7,1,10],[1,5,1,6],[2,6,2,7],[2,12,2,14],[3,3,3,5],[3,6,3,9],[3,12,3,14]]}
[]
[null,null,null,null,null,"錬士",null,"受審申込み連名簿"]
[null,null,null,"申込人数",{"$f":"IF(D7=\"\",\"\",COUNTA(D7:D26))","v":""},"名","支部No.",null,{"$f":"IF(J3=\"\",\"\",VLOOKUP(J3,支部No!D:E,2,FALSE))","v":""},null,"支部","審査日","年令基準"]
[null,null,null,"申込記載者氏名",null,null,null,null,null,null,"印",null,{"$f":"IF(L4=\"\",\"\",L4)","v":""}]
[]
[null,"No.","全剣連番号","姓","名","性別","学年","生年月日","年令","現段取得\n年月日","経過年数","取得場所","写","形","学科","段位"]
[null,1,null,null,null,null,null,null,{"$f":"IF(H7=\"\",\"\",DATEDIF(H7,$M$4,\"Y\"))","v":""},null,{"$f":"IF(J7=\"\",\"\",DATEDIF(DATE(YEAR(J7),MONTH(J7),1),DATE(YEAR($L$4),MONTH($L$4),DAY($L$4)),\"Y\"))","v":""}]
[null,2,null,null,null,null,null,null,"",null,""]
[null,3,null,null,null,null,null,null,"",null,""]
[null,4,null,null,null,null,null,null,"",null,""]
[null,5,null,null,null,null,null,null,"",null,""]
[null,6,null,null,null,null,null,null,"",null,""]
[null,7,null,null,null,null,null,null,"",null,""]
[null,8,null,null,null,null,null,null,"",null,""]
[null,9,null,null,null,null,null,null,"",null,""]
[null,10,null,null,null,null,null,null,"",null,""]
[null,11,null,null,null,null,null,null,"",null,""]
[null,12,null,null,null,null,null,null,"",null,""]
[null,13,null,null,null,null,null,null,"",null,""]
[null,14,null,null,null,null,null,null,"",null,""]
[null,15,null,null,null,null,null,null,"",null,""]
[null,16,null,null,null,null,null,null,"",null,""]
[null,17,null,null,null,null,null,null,"",null,""]
[null,18,null,null,null,null,null,null,"",null,""]
[null,19,null,null,null,null,null,null,"",null,""]
[null,20,null,null,null,null,null,null,"",null,""]

{"sheet":"教士","index":11,"n_rows":26,"n_cols":16,"rows_kept":26,"cut":false,"hidden":false,"merged":[[1,7,1,10],[1,5,1,6],[2,6,2,7],[2,12,2,14],[3,3,3,5],[3,6,3,9],[3,12,3,14]]}
[]
[null,null,null,null,null,"教士",null,"受審申込み連名簿"]
[null,null,null,"申込人数",{"$f":"IF(D7=\"\",\"\",COUNTA(D7:D26))","v":""},"名","支部No.",null,{"$f":"IF(J3=\"\",\"\",VLOOKUP(J3,支部No!D:E,2,FALSE))","v":""},null,"支部","審査日","年令基準"]
[null,null,null,"申込記載者氏名",null,null,null,null,null,null,"印",null,{"$f":"IF(L4=\"\",\"\",L4)","v":""}]
[]
[null,"No.","全剣連番号","姓","名","性別","学年","生年月日","年令","現段取得\n年月日","経過年数","取得場所","写","形","学科","段位"]
[null,1,null,null,null,null,null,null,{"$f":"IF(H7=\"\",\"\",DATEDIF(H7,$M$4,\"Y\"))","v":""},null,{"$f":"IF(J7=\"\",\"\",DATEDIF(DATE(YEAR(J7),MONTH(J7),1),DATE(YEAR($L$4),MONTH($L$4),DAY($L$4)),\"Y\"))","v":""}]
[null,2,null,null,null,null,null,null,"",null,""]
[null,3,null,null,null,null,null,null,"",null,""]
[null,4,null,null,null,null,null,null,"",null,""]
[null,5,null,null,null,null,null,null,"",null,""]
[null,6,null,null,null,null,null,null,"",null,""]
[null,7,null,null,null,null,null,null,"",null,""]
[null,8,null,null,null,null,null,null,"",null,""]
[null,9,null,null,null,null,null,null,"",null,""]
[null,10,null,null,null,null,null,null,"",null,""]
[null,11,null,null,null,null,null,null,"",null,""]
[null,12,null,null,null,null,null,null,"",null,""]
[null,13,null,null,null,null,null,null,"",null,""]
[null,14,null,null,null,null,null,null,"",null,""]
[null,15,null,null,null,null,null,null,"",null,""]
[null,16,null,null,null,null,null,null,"",null,""]
[null,17,null,null,null,null,null,null,"",null,""]
[null,18,null,null,null,null,null,null,"",null,""]
[null,19,null,null,null,null,null,null,"",null,""]
[null,20,null,null,null,null,null,null,"",null,""]